Workbook

Sheet QUOTATION
A1: □ | B1: 공급 면적 | C1: 34 | D1: 평
A2: □ | B2: 확장 유무 | H2: 2
A3: □ | B3: 천정 높이 | C3: 2.4 | D3: m
A4: □ | B4: 살림 유무 | H4: 2
A5: □ | B5: 벽지 선택 | H5: 1
A6: □ | B6: 시공 방법 | H6: 1
B7: 고급도배 : 벽지제거후 부직포, 운용지등으로 기초작업후 정배를 하는 것을 말함. 일반도배 : 벽지제거를 최소화 한후 네바리 작업후 정배를 하는 것을 말함.
A8: □ | B8: 시공 장소 선택
H9: 1
G10: 10 | H10: FALSE | I10: =$G$10/($G$10+$G$11)% -> 40 | K10: =IF(H10, I10,0) -> 0
G11: 15 | H11: FALSE | I11: =$G$11/($G$10+$G$11)% -> 60 | K11: =IF(H11, I11,0) -> 0
G12: 40 | H12: FALSE | I12: =$G$12*$G$10/($G$10+$G$11) -> 16 | K12: 0
H13: FALSE | I13: =$G$12*$G$11/($G$10+$G$11) -> 24 | K13: 0
H14: FALSE | I14: =$G$12*$G$11/($G$10+$G$11)/4 -> 6 | K14: 0
H15: FALSE | I15: =$G$12*$G$11/($G$10+$G$11)/2 -> 12 | K15: 0
G16: 24 | H16: FALSE | I16: =$G$16*$G$10/($G$10+$G$11) -> 9.6 | K16: 0
H17: FALSE | I17: =$G$16*$G$11/($G$10+$G$11) -> 14.4 | K17: 0
H18: FALSE | I18: =$G$16*$G$11/($G$10+$G$11)/4 -> 3.6 | K18: 0
H19: FALSE | I19: =$G$16*$G$11/($G$10+$G$11)/2 -> 7.2 | K19: 0
G20: 18 | H20: FALSE | I20: =$G$20*$G$10/($G$10+$G$11) -> 7.2 | K20: 0
H21: FALSE | I21: =$G$20*$G$11/($G$10+$G$11) -> 10.8 | K21: 0
H22: FALSE | I22: =$G$20*$G$11/($G$10+$G$11)/4 -> 2.7 | K22: 0
H23: FALSE | I23: =$G$20*$G$11/($G$10+$G$11)/2 -> 5.4 | K23: 0
G24: 18 | H24: FALSE | I24: =$G$24*$G$10/($G$10+$G$11) -> 7.2 | K24: 0
H25: FALSE | I25: =$G$24*$G$11/($G$10+$G$11) -> 10.8 | K25: 0
H26: FALSE | I26: =$G$24*$G$11/($G$10+$G$11)/4 -> 2.7 | K26: 0
H27: FALSE | I27: =$G$24*$G$11/($G$10+$G$11)/2 -> 5.4 | K27: 0
J28: 천정 | K28: =K10 + K12+K16+K20+K24 -> 0 | L28: =K11 +SUM(K13:K15) + SUM(K17:K19) + SUM(K21:K23) + SUM(K25:K27) -> 0
A30: □ | B30: 도배 면적
B31: 천정 | C31: =IF(H2=1,C1,C1*DATA!$B$4) -> 28.9 | D31: 평 | E31: =C31*DATA!$B$2 -> 95.37 | F31: ㎡
B32: 벽 | C32: =C31*C3*DATA!$B$7 -> 52.02 | D32: 평 | E32: =C32*DATA!$B$2 -> 171.666 | F32: ㎡
B33: 합 | C33: =C31+C32 -> 80.92 | D33: 평 | E33: =E31+E32 -> 267.036 | F33: ㎡
A35: □ | B35: 벽지 수량 및 주재료비
B36: 위 치 | C36: 수 량 | D36: 단 위 | E36: 단 가 | F36: 가 격
B37: 천정 | C37: =ROUNDUP(C31/DATA!$B$3,0) -> 6 | D37: 롤 | E37: =IF($H$5=1,DATA!$B$41, IF($H$5=2,DATA!$B$42,0)) -> 6000 | F37: =C37*E37*5 -> 180000 | H37: 3 | I37: =H37*E37*5 -> 90000
B38: 벽 | C38: =ROUNDUP(C32/DATA!$B$3,0) -> 11 | D38: 롤 | E38: =IF($H$5=1,DATA!$B$41, IF($H$5=2,DATA!$B$42,0)) -> 6000 | F38: =C38*E38*5 -> 330000
B39: 소 계 | C39: =SUM(C37:C38) -> 17 | D39: 롤 | E39: =SUM(E37:E38) -> 12000 | F39: =SUM(F37:F38) -> 510000
B41: 1인 1일 기본 작업량 | C41: =IF(H5=1,DATA!$B$19, IF(H5=2,DATA!$B$20, "벽지를 선택")) -> 6 | D41: 롤 | E41: =C41*DATA!$B$2 -> 19.8 | F41: ㎡
B42: 살림집 효과 | C42: =C41*DATA!$B$9 -> 3.6 | D42: 롤 | E42: =C42*DATA!$B$2 -> 11.88 | F42: ㎡
B43: 고급도배 효과 | C43: =C41*DATA!$B$10 -> 4.8 | D43: 롤 | E43: =C43*DATA!$B$2 -> 15.84 | F43: ㎡
B44: 살림집과 고급도배 효과 | C44: =C41*DATA!$B$9*DATA!$B$10 -> 2.88 | D44: 롤 | E44: =C44*DATA!$B$2 -> 9.504 | F44: ㎡
B45: 높이에 따른 시공 효과 | C45: =IF((C3>DATA!$B$6), C41*DATA!$B$6/C3, C41) -> 6 | D45: 롤 | E45: =C45*DATA!$B$2 -> 19.8 | F45: ㎡
A47: □ | B47: 인건비
B48: 도배기술자 | C48: =IF(AND($H$4=1,$H$6=1),ROUNDUP(C39/$C$43,0),(IF(AND($H$4=2,$H$6=1),ROUNDUP(C39/$C$44,0),IF(AND($H$4=2,$H$6=1),ROUNDUP(C39/$C$42,0),ROUNDUP(C39/$C$41,0) )))) -> 6 | D48: 명 | E48: =DATA!$B$51 -> 250000 | F48: =C48*E48 -> 1500000
B49: 소 계 | F49: =F48 -> 1500000
A51: □ | B51: 부자재
B52: 위 치 | C52: 수 량 | D52: 단 위 | E52: 단 가 | F52: 가 격
B53: =DATA!$A$31 -> 부직포[109mm] | C53: =IF($H$6=1, ROUNDUP(C33/30,0), 0) -> 3 | D53: 롤 | E53: =DATA!$B$31 -> 35000 | F53: =C53*E53 -> 105000
B54: =DATA!$A$32 -> 운용지 | C54: =IF($H$6=1, C1*3, 0) -> 102 | D54: m | E54: =DATA!$B$32 -> 150 | F54: =C54*E54 -> 15300
B55: =DATA!$A$33 -> 풀[20Kg] | C55: =IF(C5=DATA!$A15,ROUNDUP(C39/DATA!$B$19,0)+1,ROUNDUP(C39/DATA!$B$20,0)+1) -> 6 | D55: EA | E55: =DATA!$B$33 -> 10000 | F55: 60000
B56: =DATA!$A$34 -> 본드 | C56: =ROUNDUP($C$1/3, 0) -> 12 | D56: EA | E56: =DATA!$B$34 -> 1500 | F56: 18000
B57: =DATA!$A$35 -> 실리콘[도배용] | C57: =ROUNDUP($C$1/3, 0) -> 12 | D57: EA | E57: =DATA!$B$35 -> 1500 | F57: 18000
B58: =DATA!$A36 -> 네바리 | C58: =ROUNDUP(C1/10,0) -> 4 | D58: EA | E58: =DATA!$B$36 -> 5000 | F58: 20000
B59: 소 계 | F59: =SUM(F53:F58) -> 236300
A61: □ | B61: 기타
B62: 간접비용 | F62: =(F39+F49+F59)*3% -> 67389
B63: 기업이윤 | F63: =(F39+F59)*10% -> 74630
B64: 소 계 | F64: =SUM(F62:F63) -> 142019
B66: 합 계 | F66: =F39+F49+F59+F64 -> 2388319 | H66: =F66*I12/100 -> 382131.04
A67: □ | B67: 면책 사항
A68: 1 | B68: 현장 사항을 고려하지 않는 단순 견적, 이로 인한 발생하는 손익은 당사자들에게 모든 책임이 있다.
A69: 2 | B69: 현장사항을 확인 완료 검토하여 진행한다.
A70: 3 | B70: 모든 단가와 견적 계산 방법은 다를 수 있다.

Sheet DATA
A1: 기본값
A2: PY2SQUAREM | B2: 3.3 | C2: PY/㎡
A3: 면적/롤 | B3: 5 | C3: PY/Roll
A4: 확장비확장비율 | B4: 0.85
A5: 천장에대한벽비율 | B5: 1.8
A6: 기본벽높이 | B6: 2.4 | C6: m
A7: 벽높이에따른비율 | B7: =$B$5/$B$6 -> 0.75
A9: 살림집효과비율 | B9: 0.6
A10: 고급도배비율 | B10: 0.8
A14: 벽지를 선택하세요
A15: 합지벽지
A16: 실크벽지
A18: 롤/박스
A19: 합지벽지 | B19: 6 | C19: 롤
A20: 실크벽지 | B20: 4 | C20: 롤
A30: 부자재
A31: 부직포[109mm] | B31: 35000 | C31: 원
A32: 운용지 | B32: 150 | C32: 원
A33: 풀[20Kg] | B33: 10000 | C33: 원
A34: 본드 | B34: 1500 | C34: 원
A35: 실리콘[도배용] | B35: 1500 | C35: 원
A36: 네바리 | B36: 5000 | C36: 원
A37: 바인더 | B37: 3000 | C37: 원
A38: 각대 | B38: 3000 | C38: 원
A40: 벽지 단가[3.3㎡]
A41: 합지벽지 | B41: 6000 | C41: 원
A42: 실크벽지 | B42: 11000 | C42: 원
A50: 인건비
A51: 도배기술자 | B51: 250000 | C51: 원 | D51: 지역, 업체마다 상이
A60: 시공장소
A61: 전체시공
A62: 전체 천정만 시공
A63: 전체 벽만 시공
A64: 거실 시공
A65: 거실천정 시공
A66: 거실벽 시공
A67: 안방 시공
A68: 안방천정 시공
A69: 안방벽 시공
A70: 방1 시공
A71: 방2 시공
A72: 방3 시공
A73: 방4 시공
